[Event "Early-Titled-Tuesday-Blitz-March-05-2024"]
[Site "Chess.com"]
[Date "2024.03.05"]
[Round "5"]
[White "RamonManon0g"]
[Black "GoValya"]
[Result "1-0"]
[WhiteElo "2422"]
[BlackElo "2242"]
[TimeControl "180+1"]
[EndTime "8:58:39 PST"]
[Termination "RamonManon0g won on time"]

1. e4 {[%clk 0:03:00.9]} 1... e6 {[%clk 0:02:58]} 2. d4 {[%clk 0:03:00.6]} 2...
d5 {[%clk 0:02:57.3]} 3. Nd2 {[%clk 0:03:00.8]} 3... Nf6 {[%clk 0:02:55.5]} 4.
exd5 {[%clk 0:02:59]} 4... exd5 {[%clk 0:02:55]} 5. Ngf3 {[%clk 0:02:59.9]} 5...
c5 {[%clk 0:02:48.8]} 6. c3 {[%clk 0:02:57]} 6... Nc6 {[%clk 0:02:46.4]} 7. dxc5
{[%clk 0:02:57]} 7... Bxc5 {[%clk 0:02:45.8]} 8. Nb3 {[%clk 0:02:57.1]} 8... Be7
{[%clk 0:02:33.1]} 9. Be2 {[%clk 0:02:54.5]} 9... O-O {[%clk 0:02:33.1]} 10. h3
{[%clk 0:02:52.2]} 10... Ne4 {[%clk 0:02:33]} 11. O-O {[%clk 0:02:52]} 11... Bf5
{[%clk 0:02:27.8]} 12. Bf4 {[%clk 0:02:50.4]} 12... Bg6 {[%clk 0:02:21.8]} 13.
Ne5 {[%clk 0:02:47.1]} 13... Nxe5 {[%clk 0:02:19.9]} 14. Bxe5 {[%clk 0:02:47]}
14... Rc8 {[%clk 0:02:10.8]} 15. Qd4 {[%clk 0:02:42.7]} 15... f6 {[%clk
0:02:06]} 16. Bf4 {[%clk 0:02:40.1]} 16... Bf7 {[%clk 0:02:01.7]} 17. Qxa7
{[%clk 0:02:37.3]} 17... Qd7 {[%clk 0:01:49.6]} 18. Qd4 {[%clk 0:02:08.7]} 18...
g5 {[%clk 0:01:21.1]} 19. Bh2 {[%clk 0:02:06.8]} 19... Be6 {[%clk 0:01:21]} 20.
Rad1 {[%clk 0:02:03.7]} 20... Qc6 {[%clk 0:00:29.5]} 21. Bf3 {[%clk 0:02:01.3]}
21... f5 {[%clk 0:00:26.3]} 22. Be5 {[%clk 0:01:52.3]} 22... Rf7 {[%clk
0:00:20.5]} 23. Bh5 {[%clk 0:01:48.4]} 23... Rff8 {[%clk 0:00:19.7]} 24. Bg7
{[%clk 0:01:47.1]} 24... Bf6 {[%clk 0:00:18.5]} 25. Bxf6 {[%clk 0:01:46.8]}
25... Nxf6 {[%clk 0:00:17.7]} 26. Bf3 {[%clk 0:01:36]} 26... Ne4 {[%clk
0:00:17.7]} 27. Qe5 {[%clk 0:01:35.5]} 27... Rce8 {[%clk 0:00:16.6]} 28. Nd4
{[%clk 0:01:34.9]} 28... Qd7 {[%clk 0:00:16.1]} 29. Nxe6 {[%clk 0:01:35]} 29...
Qxe6 {[%clk 0:00:15.7]} 30. Qxd5 {[%clk 0:01:35]} 30... Qxd5 {[%clk 0:00:15.4]}
31. Rxd5 {[%clk 0:01:35.9]} 31... Rf7 {[%clk 0:00:14.2]} 32. Bxe4 {[%clk
0:01:35.4]} 32... Rxe4 {[%clk 0:00:13.6]} 33. Rfd1 {[%clk 0:01:34.2]} 33... Re2
{[%clk 0:00:13.1]} 34. R5d2 {[%clk 0:01:32.3]} 34... Rfe7 {[%clk 0:00:11.7]} 35.
Kf1 {[%clk 0:01:31.5]} 35... R2e6 {[%clk 0:00:10.2]} 36. Rd8+ {[%clk 0:01:30.1]}
36... Kf7 {[%clk 0:00:10.6]} 37. R8d7 {[%clk 0:01:29.7]} 37... Rb6 {[%clk
0:00:10.7]} 38. Rxe7+ {[%clk 0:01:27]} 38... Kxe7 {[%clk 0:00:11.6]} 39. b3
{[%clk 0:01:25]} 39... Rc6 {[%clk 0:00:10.1]} 40. c4 {[%clk 0:01:25.1]} 40...
Ra6 {[%clk 0:00:10.4]} 41. Rd2 {[%clk 0:01:20.1]} 41... Ke6 {[%clk 0:00:09.9]}
42. Ke2 {[%clk 0:01:19.1]} 42... Ke5 {[%clk 0:00:09.2]} 43. Kd3 {[%clk
0:01:19.2]} 43... h6 {[%clk 0:00:09.1]} 44. Kc3 {[%clk 0:01:19.2]} 44... Ke4
{[%clk 0:00:08.7]} 45. a4 {[%clk 0:01:12.4]} 45... Ke5 {[%clk 0:00:07.9]} 46. c5
{[%clk 0:01:12.3]} 46... Rc6 {[%clk 0:00:07.2]} 47. Kc4 {[%clk 0:01:12.2]} 47...
Ke4 {[%clk 0:00:05.9]} 48. b4 {[%clk 0:01:08.5]} 48... f4 {[%clk 0:00:05.9]} 49.
Rd4+ {[%clk 0:00:59.8]} 49... Ke5 {[%clk 0:00:05.1]} 50. b5 {[%clk 0:00:59.1]}
50... Rc8 {[%clk 0:00:05.2]} 51. f3 {[%clk 0:00:55.9]} 51... Rc7 {[%clk
0:00:04]} 52. a5 {[%clk 0:00:54.6]} 52... h5 {[%clk 0:00:03.7]} 53. Rd5+ {[%clk
0:00:52.3]} 53... Ke6 {[%clk 0:00:03.5]} 54. Rxg5 {[%clk 0:00:51.9]} 54... Kf6
{[%clk 0:00:03.4]} 55. Rxh5 {[%clk 0:00:51.6]} 55... Ke6 {[%clk 0:00:03.3]} 56.
b6 {[%clk 0:00:49.4]} 56... Rg7 {[%clk 0:00:03.2]} 57. Rh6+ {[%clk 0:00:45.6]}
57... Kd7 {[%clk 0:00:03.3]} 58. Kb5 {[%clk 0:00:43.3]} 58... Rxg2 {[%clk
0:00:02.7]} 59. Rh7+ {[%clk 0:00:40.9]} 59... Kc8 {[%clk 0:00:02.3]} 60. Kc4
{[%clk 0:00:35]} 1-0

[Event "Early-Titled-Tuesday-Blitz-March-05-2024"]
[Site "Chess.com"]
[Date "2024.03.05"]
[Round "5"]
[White "Mops_2004"]
[Black "lucasran"]
[Result "0-1"]
[WhiteElo "2827"]
[BlackElo "2613"]
[TimeControl "180+1"]
[EndTime "8:58:43 PST"]
[Termination "lucasran won on time"]

1. g3 {[%clk 0:03:00.9]} 1... c5 {[%clk 0:02:54.3]} 2. Bg2 {[%clk 0:03:00.4]}
2... Nc6 {[%clk 0:02:34]} 3. c4 {[%clk 0:02:56.7]} 3... g6 {[%clk 0:02:34.3]} 4.
Nc3 {[%clk 0:02:55.9]} 4... Bg7 {[%clk 0:02:34.8]} 5. d3 {[%clk 0:02:55.3]} 5...
d6 {[%clk 0:02:34.1]} 6. h4 {[%clk 0:02:52.2]} 6... h6 {[%clk 0:02:34.2]} 7. a3
{[%clk 0:02:43]} 7... a5 {[%clk 0:02:33.7]} 8. Nh3 {[%clk 0:02:36.1]} 8... e5
{[%clk 0:02:27.5]} 9. Bd2 {[%clk 0:02:25.4]} 9... f5 {[%clk 0:02:23.5]} 10. f4
{[%clk 0:02:04.8]} 10... Nf6 {[%clk 0:02:22.7]} 11. Nf2 {[%clk 0:02:04.2]} 11...
Nh5 {[%clk 0:02:16]} 12. Rh3 {[%clk 0:02:02.7]} 12... exf4 {[%clk 0:01:49.4]}
13. gxf4 {[%clk 0:02:02.7]} 13... Bf6 {[%clk 0:01:49.8]} 14. Nd5 {[%clk
0:02:02.9]} 14... Bxb2 {[%clk 0:01:31.6]} 15. Rb1 {[%clk 0:02:01.1]} 15... Bg7
{[%clk 0:01:30.6]} 16. e3 {[%clk 0:01:38.2]} 16... Nf6 {[%clk 0:01:25.7]} 17.
Kf1 {[%clk 0:01:31.6]} 17... O-O {[%clk 0:01:15.2]} 18. Bf3 {[%clk 0:01:00.7]}
18... Rf7 {[%clk 0:00:56.9]} 19. Kg2 {[%clk 0:00:38.9]} 19... Be6 {[%clk
0:00:56.8]} 20. Kh2 {[%clk 0:00:28.5]} 20... h5 {[%clk 0:00:41.8]} 21. Nxf6+
{[%clk 0:00:25.7]} 21... Qxf6 {[%clk 0:00:41.7]} 22. Qh1 {[%clk 0:00:22.3]}
22... Rc8 {[%clk 0:00:38.5]} 23. Nd1 {[%clk 0:00:21.9]} 23... Nd8 {[%clk
0:00:32.9]} 24. Nc3 {[%clk 0:00:21.2]} 24... Qe7 {[%clk 0:00:26.8]} 25. Rg1
{[%clk 0:00:18.9]} 25... Kh7 {[%clk 0:00:26.9]} 26. Qg2 {[%clk 0:00:17.8]} 26...
Qf6 {[%clk 0:00:27.2]} 27. Be1 {[%clk 0:00:15]} 27... Re7 {[%clk 0:00:27.3]} 28.
Rg3 {[%clk 0:00:12.8]} 28... Bf7 {[%clk 0:00:27.5]} 29. Nd5 {[%clk 0:00:10.9]}
29... Bxd5 {[%clk 0:00:20.8]} 30. cxd5 {[%clk 0:00:10.7]} 30... Qxh4+ {[%clk
0:00:19.2]} 31. Rh3 {[%clk 0:00:11.1]} 31... Qf6 {[%clk 0:00:19.7]} 32. Bxh5
{[%clk 0:00:09.3]} 32... gxh5 {[%clk 0:00:19.3]} 33. Rxh5+ {[%clk 0:00:10.2]}
33... Kg8 {[%clk 0:00:19.6]} 34. Bh4 {[%clk 0:00:10.8]} 34... Qf7 {[%clk
0:00:18.9]} 35. Bxe7 {[%clk 0:00:10.6]} 35... Qxh5+ {[%clk 0:00:19.3]} 36. Kg3
{[%clk 0:00:08]} 36... Qg4+ {[%clk 0:00:19.5]} 37. Kf2 {[%clk 0:00:08.2]} 37...
Qxg2+ {[%clk 0:00:20.4]} 38. Rxg2 {[%clk 0:00:07.4]} 38... Kf7 {[%clk
0:00:13.6]} 39. Bxd6 {[%clk 0:00:07.6]} 39... b5 {[%clk 0:00:12.4]} 40. e4
{[%clk 0:00:07.2]} 40... fxe4 {[%clk 0:00:12.3]} 41. dxe4 {[%clk 0:00:08.1]}
41... c4 {[%clk 0:00:13.2]} 42. e5 {[%clk 0:00:07.6]} 42... c3 {[%clk
0:00:13.6]} 43. Ke3 {[%clk 0:00:07.6]} 43... c2 {[%clk 0:00:13.8]} 44. e6+
{[%clk 0:00:04.2]} 44... Nxe6 {[%clk 0:00:14.3]} 45. dxe6+ {[%clk 0:00:04.2]}
45... Kxe6 {[%clk 0:00:15.2]} 46. Rg6+ {[%clk 0:00:01.7]} 46... Kf5 {[%clk
0:00:15.1]} 0-1

[Event "Early-Titled-Tuesday-Blitz-March-05-2024"]
[Site "Chess.com"]
[Date "2024.03.05"]
[Round "5"]
[White "Jospem"]
[Black "Rodalquilar"]
[Result "1-0"]
[WhiteElo "3065"]
[BlackElo "2804"]
[TimeControl "180+1"]
[EndTime "8:58:45 PST"]
[Termination "Jospem won on time"]

1. e4 {[%clk 0:03:00.9]} 1... d5 {[%clk 0:03:00.2]} 2. exd5 {[%clk 0:03:00.9]}
2... Qxd5 {[%clk 0:03:01.1]} 3. Nc3 {[%clk 0:03:01]} 3... Qa5 {[%clk 0:03:01.2]}
4. b4 {[%clk 0:03:01.1]} 4... Qxb4 {[%clk 0:03:01]} 5. Rb1 {[%clk 0:03:01.3]}
5... Qd6 {[%clk 0:03:01.3]} 6. d4 {[%clk 0:03:00.8]} 6... Nf6 {[%clk 0:03:01.3]}
7. Bd3 {[%clk 0:02:58.9]} 7... c6 {[%clk 0:02:56.5]} 8. Nge2 {[%clk 0:02:55.8]}
8... g6 {[%clk 0:02:51.8]} 9. Bf4 {[%clk 0:02:44.7]} 9... Qd8 {[%clk 0:02:52]}
10. Qd2 {[%clk 0:02:41.5]} 10... Bg7 {[%clk 0:02:49.7]} 11. Bh6 {[%clk
0:02:41.8]} 11... O-O {[%clk 0:02:49.7]} 12. Bxg7 {[%clk 0:02:42.5]} 12... Kxg7
{[%clk 0:02:49.7]} 13. O-O {[%clk 0:02:43.4]} 13... Nbd7 {[%clk 0:02:45.5]} 14.
Qe3 {[%clk 0:02:37.5]} 14... Nb6 {[%clk 0:02:44.5]} 15. Rfe1 {[%clk 0:02:31.6]}
15... Nbd5 {[%clk 0:02:42.9]} 16. Nxd5 {[%clk 0:02:31.7]} 16... cxd5 {[%clk
0:02:43.3]} 17. Nf4 {[%clk 0:02:28.9]} 17... e6 {[%clk 0:02:21.7]} 18. Qe5
{[%clk 0:02:27.1]} 18... Kg8 {[%clk 0:02:16.8]} 19. h3 {[%clk 0:02:12.2]} 19...
b6 {[%clk 0:02:16.7]} 20. Re3 {[%clk 0:02:01.8]} 20... Bb7 {[%clk 0:02:14.8]}
21. Rg3 {[%clk 0:01:59.4]} 21... Nd7 {[%clk 0:01:50.1]} 22. Qd6 {[%clk
0:01:39.2]} 22... Nf6 {[%clk 0:01:38.8]} 23. Qe5 {[%clk 0:01:39.4]} 23... Nd7
{[%clk 0:01:39.4]} 24. Qh5 {[%clk 0:01:34.1]} 24... Qf6 {[%clk 0:01:11.3]} 25.
Qh6 {[%clk 0:00:34.1]} 25... Qg7 {[%clk 0:00:40]} 26. Qg5 {[%clk 0:00:34.3]}
26... Qxd4 {[%clk 0:00:33.3]} 27. Re1 {[%clk 0:00:33.7]} 27... Qf6 {[%clk
0:00:26.8]} 28. Qh6 {[%clk 0:00:34.2]} 28... Qg7 {[%clk 0:00:21.1]} 29. Qg5
{[%clk 0:00:34.5]} 29... Qf6 {[%clk 0:00:21.6]} 30. Qh6 {[%clk 0:00:34]} 30...
Qg7 {[%clk 0:00:22]} 31. Qh4 {[%clk 0:00:34.7]} 31... Qf6 {[%clk 0:00:20]} 32.
Qg4 {[%clk 0:00:22.5]} 32... Ne5 {[%clk 0:00:17]} 33. Rxe5 {[%clk 0:00:23]}
33... Qxe5 {[%clk 0:00:17.4]} 34. Bxg6 {[%clk 0:00:23.8]} 34... fxg6 {[%clk
0:00:14.3]} 35. Nxg6 {[%clk 0:00:24.7]} 35... h5 {[%clk 0:00:04.5]} 36. Qh4
{[%clk 0:00:25]} 36... Qf6 {[%clk 0:00:02.5]} 37. Nxf8+ {[%clk 0:00:23.3]} 37...
Kf7 {[%clk 0:00:02.7]} 38. Qxh5+ {[%clk 0:00:18.5]} 38... Kxf8 {[%clk
0:00:03.2]} 39. Rf3 {[%clk 0:00:18.2]} 39... Qxf3 {[%clk 0:00:01.9]} 40. Qxf3+
{[%clk 0:00:19.1]} 40... Ke7 {[%clk 0:00:02.6]} 41. Qa3+ {[%clk 0:00:19.5]}
41... Kd7 {[%clk 0:00:01.8]} 42. h4 {[%clk 0:00:20.2]} 42... Rc8 {[%clk
0:00:02.1]} 43. Qb2 {[%clk 0:00:19.9]} 43... Rc4 {[%clk 0:00:02.4]} 44. h5
{[%clk 0:00:20.1]} 44... Kc6 {[%clk 0:00:02.7]} 45. Qf6 {[%clk 0:00:20]} 45...
Rxc2 {[%clk 0:00:02.3]} 46. Qxe6+ {[%clk 0:00:19.9]} 46... Kb5 {[%clk
0:00:02.9]} 47. h6 {[%clk 0:00:18.3]} 47... Rc1+ {[%clk 0:00:03.5]} 48. Kh2
{[%clk 0:00:18.6]} 48... Rc6 {[%clk 0:00:04.2]} 49. Qe3 {[%clk 0:00:16.8]} 49...
d4 {[%clk 0:00:03.7]} 50. Qg5+ {[%clk 0:00:17.5]} 50... Rc5 {[%clk 0:00:03.4]}
51. Qg6 {[%clk 0:00:16.7]} 51... Bc8 {[%clk 0:00:02.7]} 52. h7 {[%clk
0:00:16.5]} 52... Bf5 {[%clk 0:00:02.4]} 53. Qe8+ {[%clk 0:00:16.8]} 1-0

[Event "Early-Titled-Tuesday-Blitz-March-05-2024"]
[Site "Chess.com"]
[Date "2024.03.05"]
[Round "5"]
[White "PedroGil25"]
[Black "ritanovikova"]
[Result "1-0"]
[WhiteElo "2529"]
[BlackElo "2196"]
[TimeControl "180+1"]
[EndTime "8:58:45 PST"]
[Termination "PedroGil25 won by checkmate"]

1. c4 {[%clk 0:03:00.9]} 1... Nf6 {[%clk 0:02:59.4]} 2. Nf3 {[%clk 0:02:59.5]}
2... e6 {[%clk 0:03:00.3]} 3. g3 {[%clk 0:03:00.3]} 3... d5 {[%clk 0:02:58.5]}
4. Bg2 {[%clk 0:02:57.9]} 4... Be7 {[%clk 0:02:53.2]} 5. O-O {[%clk 0:02:56.8]}
5... O-O {[%clk 0:02:53.8]} 6. b3 {[%clk 0:02:56.4]} 6... Ne4 {[%clk 0:02:51.9]}
7. Bb2 {[%clk 0:02:55.7]} 7... Bf6 {[%clk 0:02:51.1]} 8. Qc1 {[%clk 0:02:50.3]}
8... Bxb2 {[%clk 0:02:47.2]} 9. Qxb2 {[%clk 0:02:51.2]} 9... Qf6 {[%clk
0:02:46.2]} 10. Qxf6 {[%clk 0:02:47.8]} 10... Nxf6 {[%clk 0:02:42.1]} 11. Nc3
{[%clk 0:02:48.1]} 11... c6 {[%clk 0:02:42]} 12. d4 {[%clk 0:02:47]} 12... Rd8
{[%clk 0:02:32.8]} 13. Rfd1 {[%clk 0:02:42.8]} 13... Na6 {[%clk 0:02:31.1]} 14.
Ne5 {[%clk 0:02:41.2]} 14... Nd7 {[%clk 0:02:28.2]} 15. Nd3 {[%clk 0:02:39.5]}
15... Nc7 {[%clk 0:02:21.5]} 16. Rac1 {[%clk 0:02:34.1]} 16... b6 {[%clk
0:02:21.2]} 17. e4 {[%clk 0:02:31.2]} 17... dxe4 {[%clk 0:02:17.2]} 18. Nxe4
{[%clk 0:02:32.1]} 18... Nb8 {[%clk 0:02:04]} 19. c5 {[%clk 0:02:17.7]} 19...
Nd5 {[%clk 0:02:01.7]} 20. Nd6 {[%clk 0:02:15.2]} 20... Bd7 {[%clk 0:01:54.9]}
21. Ne5 {[%clk 0:01:57.7]} 21... Rf8 {[%clk 0:01:46.9]} 22. a4 {[%clk
0:01:42.6]} 22... Be8 {[%clk 0:01:45.9]} 23. Nec4 {[%clk 0:01:36.3]} 23... Nd7
{[%clk 0:01:40.7]} 24. cxb6 {[%clk 0:01:19.3]} 24... axb6 {[%clk 0:01:37.4]} 25.
Nxe8 {[%clk 0:01:16.6]} 25... Rfxe8 {[%clk 0:01:31.8]} 26. Nd6 {[%clk
0:01:16.8]} 26... Red8 {[%clk 0:01:21.3]} 27. Rxc6 {[%clk 0:01:13.8]} 27... Nb8
{[%clk 0:01:21]} 28. Rc8 {[%clk 0:01:12.7]} 28... Na6 {[%clk 0:01:15.1]} 29.
Rxd8+ {[%clk 0:01:09.2]} 29... Rxd8 {[%clk 0:01:15]} 30. Bxd5 {[%clk 0:01:00.2]}
30... Rxd6 {[%clk 0:01:12.4]} 31. Bc4 {[%clk 0:01:00]} 31... Nb4 {[%clk
0:01:07.4]} 32. Kf1 {[%clk 0:01:00.1]} 32... e5 {[%clk 0:01:00]} 33. d5 {[%clk
0:00:58.2]} 33... Kf8 {[%clk 0:00:57.7]} 34. Ke2 {[%clk 0:00:58.4]} 34... f5
{[%clk 0:00:55.9]} 35. Rd2 {[%clk 0:00:57.6]} 35... Ke7 {[%clk 0:00:53.7]} 36.
Ke3 {[%clk 0:00:56.6]} 36... g5 {[%clk 0:00:52.2]} 37. f4 {[%clk 0:00:56.6]}
37... gxf4+ {[%clk 0:00:51.9]} 38. gxf4 {[%clk 0:00:57.5]} 38... e4 {[%clk
0:00:51.9]} 39. Kd4 {[%clk 0:00:57.7]} 39... Nc6+ {[%clk 0:00:33.2]} 40. Kc3
{[%clk 0:00:55.7]} 40... Nd8 {[%clk 0:00:30.9]} 41. b4 {[%clk 0:00:55.4]} 41...
Nb7 {[%clk 0:00:31]} 42. Rg2 {[%clk 0:00:52.2]} 42... Kf7 {[%clk 0:00:26.9]} 43.
Kd4 {[%clk 0:00:47.8]} 43... Kf6 {[%clk 0:00:25.6]} 44. Rg8 {[%clk 0:00:41.4]}
44... Rd7 {[%clk 0:00:24.4]} 45. Rf8+ {[%clk 0:00:38.7]} 45... Kg6 {[%clk
0:00:23.6]} 46. Rb8 {[%clk 0:00:37]} 46... Re7 {[%clk 0:00:20.3]} 47. Ke3 {[%clk
0:00:30.9]} 47... Nd6 {[%clk 0:00:19.9]} 48. Rxb6 {[%clk 0:00:30.4]} 48... Rd7
{[%clk 0:00:16.9]} 49. Bb5 {[%clk 0:00:30.9]} 49... Rd8 {[%clk 0:00:16.3]} 50.
a5 {[%clk 0:00:31.5]} 50... Kh5 {[%clk 0:00:15.4]} 51. a6 {[%clk 0:00:31.7]}
51... Kg4 {[%clk 0:00:14]} 52. a7 {[%clk 0:00:31.5]} 52... Nxb5 {[%clk
0:00:13.2]} 53. Rxb5 {[%clk 0:00:32.4]} 53... Ra8 {[%clk 0:00:11.8]} 54. Ra5
{[%clk 0:00:32.9]} 54... h5 {[%clk 0:00:10.3]} 55. b5 {[%clk 0:00:33.4]} 55...
Rxa7 {[%clk 0:00:08.7]} 56. Rxa7 {[%clk 0:00:33.3]} 56... h4 {[%clk 0:00:08.6]}
57. b6 {[%clk 0:00:34.2]} 57... Kh3 {[%clk 0:00:09]} 58. b7 {[%clk 0:00:34.7]}
58... Kg2 {[%clk 0:00:08.9]} 59. b8=Q {[%clk 0:00:35.6]} 59... Kh1 {[%clk
0:00:09.8]} 60. Ra1+ {[%clk 0:00:34.5]} 60... Kxh2 {[%clk 0:00:10.7]} 61. Qg8
{[%clk 0:00:34.5]} 61... Kh3 {[%clk 0:00:10.5]} 62. Rh1# {[%clk 0:00:34.3]} 1-0

[Event "Early-Titled-Tuesday-Blitz-March-05-2024"]
[Site "Chess.com"]
[Date "2024.03.05"]
[Round "5"]
[White "Yeritsyaan"]
[Black "ChessBrainiacOnTwitch"]
[Result "1-0"]
[WhiteElo "2598"]
[BlackElo "2817"]
[TimeControl "180+1"]
[EndTime "8:58:46 PST"]
[Termination "Yeritsyaan won on time"]

1. c4 {[%clk 0:02:55.3]} 1... e5 {[%clk 0:02:56.9]} 2. g3 {[%clk 0:02:54.7]}
2... Nf6 {[%clk 0:02:54.5]} 3. Bg2 {[%clk 0:02:54.9]} 3... c6 {[%clk 0:02:50.9]}
4. Nf3 {[%clk 0:02:52.6]} 4... e4 {[%clk 0:02:48.9]} 5. Nd4 {[%clk 0:02:52.8]}
5... d5 {[%clk 0:02:49.8]} 6. cxd5 {[%clk 0:02:48.4]} 6... cxd5 {[%clk
0:02:50.7]} 7. O-O {[%clk 0:02:47.2]} 7... Bc5 {[%clk 0:02:46.6]} 8. Nb3 {[%clk
0:02:46]} 8... Bb6 {[%clk 0:02:46.7]} 9. d3 {[%clk 0:02:46.2]} 9... Qe7 {[%clk
0:02:44.5]} 10. Nc3 {[%clk 0:02:44.9]} 10... h6 {[%clk 0:02:34.2]} 11. dxe4
{[%clk 0:02:31.1]} 11... dxe4 {[%clk 0:02:35.1]} 12. Qc2 {[%clk 0:02:31.2]}
12... Bf5 {[%clk 0:02:31.5]} 13. Be3 {[%clk 0:02:30.7]} 13... Bxe3 {[%clk
0:02:24.2]} 14. fxe3 {[%clk 0:02:31.6]} 14... Bg6 {[%clk 0:02:21.2]} 15. Nd4
{[%clk 0:02:28.4]} 15... O-O {[%clk 0:02:21.1]} 16. Rf4 {[%clk 0:02:21.4]} 16...
Nbd7 {[%clk 0:02:05.5]} 17. Raf1 {[%clk 0:02:16]} 17... Rac8 {[%clk 0:01:57.3]}
18. Qb3 {[%clk 0:02:08.3]} 18... Nc5 {[%clk 0:01:53.7]} 19. Qa3 {[%clk
0:01:52.5]} 19... Qe5 {[%clk 0:01:53.3]} 20. Qxa7 {[%clk 0:01:17.8]} 20... Rfd8
{[%clk 0:01:51.8]} 21. Qa5 {[%clk 0:01:07.8]} 21... Nh5 {[%clk 0:01:44.9]} 22.
Rf5 {[%clk 0:01:06.8]} 22... Qe7 {[%clk 0:01:31.1]} 23. Nd5 {[%clk 0:01:05.9]}
23... Qd6 {[%clk 0:01:28.4]} 24. Nf4 {[%clk 0:00:57.9]} 24... Nxf4 {[%clk
0:01:01.8]} 25. R5xf4 {[%clk 0:00:56.7]} 25... Ra8 {[%clk 0:01:00.2]} 26. Qb4
{[%clk 0:00:49.2]} 26... Rxa2 {[%clk 0:01:00.2]} 27. Qc4 {[%clk 0:00:39.5]}
27... Qd5 {[%clk 0:00:53.8]} 28. Qxd5 {[%clk 0:00:38.4]} 28... Rxd5 {[%clk
0:00:54.7]} 29. b4 {[%clk 0:00:39.1]} 29... Na4 {[%clk 0:00:46.9]} 30. Bxe4
{[%clk 0:00:37.8]} 30... Bxe4 {[%clk 0:00:47.8]} 31. Rxe4 {[%clk 0:00:38.3]}
31... Nc3 {[%clk 0:00:48.3]} 32. Re8+ {[%clk 0:00:38.9]} 32... Kh7 {[%clk
0:00:48.9]} 33. Rxf7 {[%clk 0:00:39.4]} 33... Nxe2+ {[%clk 0:00:47.3]} 34. Nxe2
{[%clk 0:00:37.4]} 34... Rxe2 {[%clk 0:00:48]} 35. Rf2 {[%clk 0:00:34.9]} 35...
Re1+ {[%clk 0:00:34.1]} 36. Kg2 {[%clk 0:00:34.8]} 36... Rb1 {[%clk 0:00:33.8]}
37. Re4 {[%clk 0:00:32.2]} 37... Rb3 {[%clk 0:00:29.4]} 38. h4 {[%clk
0:00:30.8]} 38... Rdd3 {[%clk 0:00:26.6]} 39. Kf3 {[%clk 0:00:27.1]} 39... b5
{[%clk 0:00:27.2]} 40. Rc2 {[%clk 0:00:26.4]} 40... Rd6 {[%clk 0:00:24.2]} 41.
Rc7 {[%clk 0:00:25.6]} 41... Rf6+ {[%clk 0:00:24.8]} 42. Kg4 {[%clk 0:00:20.4]}
42... Rg6+ {[%clk 0:00:23.7]} 43. Kh3 {[%clk 0:00:20.9]} 43... Rb1 {[%clk
0:00:23.2]} 44. Rc5 {[%clk 0:00:19.6]} 44... Rg1 {[%clk 0:00:20.2]} 45. g4
{[%clk 0:00:13.7]} 45... Rf6 {[%clk 0:00:15]} 46. Rf5 {[%clk 0:00:13.2]} 46...
Rc6 {[%clk 0:00:07.3]} 47. Rf2 {[%clk 0:00:07.3]} 47... Rc3 {[%clk 0:00:04.7]}
48. h5 {[%clk 0:00:07.4]} 48... Rb1 {[%clk 0:00:03.4]} 49. Re7 {[%clk
0:00:06.3]} 1-0

[Event "Early-Titled-Tuesday-Blitz-March-05-2024"]
[Site "Chess.com"]
[Date "2024.03.05"]
[Round "5"]
[White "Neijin"]
[Black "ural58"]
[Result "1-0"]
[WhiteElo "2717"]
[BlackElo "2514"]
[TimeControl "180+1"]
[EndTime "8:58:46 PST"]
[Termination "Neijin won by resignation"]

1. e4 {[%clk 0:02:55.5]} 1... d5 {[%clk 0:03:00]} 2. exd5 {[%clk 0:02:54.6]}
2... Qxd5 {[%clk 0:03:00]} 3. Nc3 {[%clk 0:02:54.5]} 3... Qa5 {[%clk 0:02:59.6]}
4. d4 {[%clk 0:02:54.1]} 4... Nf6 {[%clk 0:03:00]} 5. Bc4 {[%clk 0:02:53.1]}
5... Bg4 {[%clk 0:02:59.7]} 6. f3 {[%clk 0:02:52.7]} 6... Be6 {[%clk 0:02:59.7]}
7. Bxe6 {[%clk 0:02:51.7]} 7... fxe6 {[%clk 0:02:59.5]} 8. Ne2 {[%clk 0:02:50]}
8... Nc6 {[%clk 0:02:59.3]} 9. Nf4 {[%clk 0:02:45.5]} 9... O-O-O {[%clk
0:02:58.6]} 10. Nxe6 {[%clk 0:02:43.6]} 10... Rd6 {[%clk 0:02:58.4]} 11. Nxf8
{[%clk 0:02:35.8]} 11... Rxf8 {[%clk 0:02:58.4]} 12. O-O {[%clk 0:02:22.5]}
12... Nxd4 {[%clk 0:02:57.6]} 13. Be3 {[%clk 0:02:12.7]} 13... e5 {[%clk
0:02:53.4]} 14. Bxd4 {[%clk 0:02:07.8]} 14... exd4 {[%clk 0:02:52.9]} 15. Ne4
{[%clk 0:02:04.6]} 15... Nxe4 {[%clk 0:02:52]} 16. fxe4 {[%clk 0:02:04.7]} 16...
Rxf1+ {[%clk 0:02:37.5]} 17. Qxf1 {[%clk 0:02:03.5]} 17... Qe5 {[%clk
0:02:33.2]} 18. Qf3 {[%clk 0:01:56.4]} 18... h5 {[%clk 0:02:25.9]} 19. Rf1
{[%clk 0:01:50.5]} 19... b6 {[%clk 0:02:20.3]} 20. Qd3 {[%clk 0:01:21.1]} 20...
Kb7 {[%clk 0:02:18.3]} 21. Rf5 {[%clk 0:01:20.6]} 21... Qe6 {[%clk 0:02:14.3]}
22. e5 {[%clk 0:01:00.6]} 22... Rc6 {[%clk 0:02:10]} 23. b3 {[%clk 0:00:52.5]}
23... g6 {[%clk 0:02:05.3]} 24. Rg5 {[%clk 0:00:41]} 24... Qd5 {[%clk
0:01:57.7]} 25. h3 {[%clk 0:00:37.2]} 25... Rc3 {[%clk 0:01:53.4]} 26. Qxg6
{[%clk 0:00:25.1]} 26... d3 {[%clk 0:01:51.2]} 27. cxd3 {[%clk 0:00:24.1]} 27...
Rxd3 {[%clk 0:01:50.8]} 28. Qf5 {[%clk 0:00:20.2]} 28... h4 {[%clk 0:01:43.9]}
29. Rg4 {[%clk 0:00:14.1]} 29... Re3 {[%clk 0:01:26.2]} 30. Rxh4 {[%clk
0:00:09.4]} 30... Rxe5 {[%clk 0:01:16.3]} 31. Qf2 {[%clk 0:00:09.7]} 31... Qd1+
{[%clk 0:01:09.2]} 32. Kh2 {[%clk 0:00:09.6]} 32... Re1 {[%clk 0:01:09.3]} 33.
Rc4 {[%clk 0:00:04.1]} 33... Rh1+ {[%clk 0:01:07.8]} 34. Kg3 {[%clk 0:00:04.7]}
34... Rf1 {[%clk 0:01:04.7]} 35. Qe3 {[%clk 0:00:04.1]} 35... Qd6+ {[%clk
0:01:04.4]} 36. Rf4 {[%clk 0:00:02.9]} 36... a5 {[%clk 0:00:55.9]} 37. Qe4+
{[%clk 0:00:02.3]} 37... Ka7 {[%clk 0:00:55.8]} 38. Kg4 {[%clk 0:00:03.2]} 38...
Qd1+ {[%clk 0:00:46.3]} 39. Kg5 {[%clk 0:00:03.4]} 39... Re1 {[%clk 0:00:43.4]}
40. Qf3 {[%clk 0:00:03.9]} 40... Qd8+ {[%clk 0:00:42.1]} 41. Kg4 {[%clk
0:00:03.2]} 41... Qg8+ {[%clk 0:00:41.4]} 42. Kh4 {[%clk 0:00:03.6]} 42... Re7
{[%clk 0:00:37.9]} 43. g4 {[%clk 0:00:04.2]} 43... Qe8 {[%clk 0:00:32.7]} 44.
Rf8 {[%clk 0:00:04.4]} 44... Rh7+ {[%clk 0:00:29.3]} 45. Kg3 {[%clk 0:00:04.9]}
45... Qe5+ {[%clk 0:00:29.2]} 46. Kg2 {[%clk 0:00:05.5]} 46... Qb2+ {[%clk
0:00:23.7]} 47. Kg1 {[%clk 0:00:05.8]} 47... Qc1+ {[%clk 0:00:22.5]} 48. Kh2
{[%clk 0:00:06.2]} 48... c6 {[%clk 0:00:21]} 49. Rf7+ {[%clk 0:00:05.9]} 49...
Rxf7 {[%clk 0:00:20.5]} 50. Qxf7+ {[%clk 0:00:06.8]} 50... Ka6 {[%clk
0:00:21.2]} 51. Kg2 {[%clk 0:00:06.5]} 51... a4 {[%clk 0:00:19.2]} 52. Qf1+
{[%clk 0:00:06.5]} 52... Ka5 {[%clk 0:00:18.8]} 53. Qxc1 {[%clk 0:00:06]} 1-0